fUST/lending_fUST_20250524
["ID","MTS","AMOUNT","RATE_DAILY","PERIOD"]
[362188201,1748075114816,487.12448185,0.00024658,30]
[362188202,1748075121949,4363.46809704,0.00024,30]
[362188203,1748075129580,7158.03,0.00024,120]
[362188204,1748075129991,5172.35167798,0.00024,30]
[362188206,1748075138795,216.48034346,0.00022464,30]
[362188224,1748075320911,7015.29918256,0.00024,120]
[362188275,1748075432423,-161.481596,0.00013699,2]
[362188277,1748075432432,-347.93005487,0.00020927,2]
[362188279,1748075432443,-93.52027773,0.00020927,2]
[362188281,1748075432455,-202.858887,0.0002103,2]
[362188283,1748075432464,-300.0,0.00021915,2]
[362188285,1748075432473,-300.0,0.00021915,2]
[362188287,1748075432482,-300.0,0.00021915,2]
[362188289,1748075432492,-500.0,0.00021916,2]
[362188290,1748075432501,-500.0,0.00021916,2]
[362188292,1748075432511,-500.0,0.00021916,2]
[362188294,1748075432525,-500.0,0.00021916,2]
[362188295,1748075432534,-369.218845,0.00021916,2]
[362188296,1748075432543,-456.45834522,0.00021916,2]
[362188298,1748075432553,-189.17961913,0.00021916,2]
[362188299,1748075432562,-370.0,0.00021917,3]
[362188300,1748075432571,-317.50748749,0.00021917,3]
[362188302,1748075432581,-298.93746281,0.00021917,3]
[362188304,1748075432592,-406.70531427,0.00021917,3]
[362188305,1748075432601,-430.0,0.00021917,3]
[362188306,1748075432611,-430.0,0.00021917,3]
[362188307,1748075432620,-430.0,0.00021917,3]
[362188308,1748075432630,-430.0,0.00021917,2]
[362188309,1748075432639,-405.47427713,0.00021917,3]
[362188310,1748075432648,-430.0,0.00021917,3]
[362188311,1748075432658,-430.0,0.00021917,3]
[362188312,1748075432669,-430.0,0.00021917,3]
[362188314,1748075432678,-430.0,0.00021917,3]
[362188315,1748075432688,-450.0,0.00021917,3]
[362188316,1748075432707,-356.87892435,0.00021917,3]
[362188317,1748075432717,-430.0,0.00021917,3]
[362188318,1748075432727,-430.0,0.00021917,3]
[362188319,1748075432736,-212.02972206,0.00021917,3]
[362188320,1748075432791,-217.97027794,0.00021917,3]
[362188321,1748075432801,-430.0,0.00021917,3]
[362188322,1748075432810,-430.0,0.00021917,3]
[362188323,1748075432820,-430.0,0.00021917,3]
[362188324,1748075432830,-430.0,0.00021917,3]
[362188325,1748075432840,-430.0,0.00021917,3]
[362188326,1748075432850,-430.0,0.00021917,3]
[362188327,1748075432859,-430.0,0.00021917,3]
[362188328,1748075432870,-430.0,0.00021917,3]
[362188329,1748075432880,-430.0,0.00021917,3]
[362188330,1748075432890,-614.84,0.00021917,3]
[362188331,1748075432900,-430.0,0.00021917,3]
[362188332,1748075432909,-430.0,0.00021917,3]
[362188333,1748075432918,-430.0,0.00021917,3]
[362188334,1748075432927,-473.54694317,0.00021917,3]
[362188335,1748075432937,-473.7476096,0.00021917,3]
[362188336,1748075432946,-430.0,0.00021917,3]
[362188337,1748075432956,-430.0,0.00021917,3]
[362188338,1748075432966,-430.0,0.00021917,3]
[362188339,1748075432975,-430.0,0.00021917,3]
[362188340,1748075432984,-430.0,0.00021917,3]
[362188341,1748075432994,-400.0,0.00021917,3]
[362188342,1748075433003,-430.0,0.00021917,3]
[362188343,1748075433012,-400.0,0.00021917,3]
[362188344,1748075433022,-430.0,0.00021917,3]
[362188345,1748075433031,-430.0,0.00021917,3]
[362188346,1748075433042,-199.77257741,0.00021917,3]
[362188347,1748075433052,-340.0,0.00021917,3]
[362188348,1748075433062,-430.0,0.00021917,3]
[362188349,1748075433072,-430.0,0.00021917,3]
[362188350,1748075433082,-497.13948512,0.00021917,3]
[362188351,1748075433092,-430.0,0.00021917,3]
[362188352,1748075433102,-430.0,0.00021917,3]
[362188353,1748075433112,-420.35,0.00021917,3]
[362188354,1748075433121,-430.0,0.00021917,3]
[362188355,1748075433131,-430.0,0.00021917,3]
[362188356,1748075433141,-430.0,0.00021917,3]
[362188357,1748075433150,-430.0,0.00021917,3]
[362188358,1748075433160,-430.0,0.00021917,3]
[362188359,1748075433170,-430.0,0.00021917,3]
[362188360,1748075433180,-430.0,0.00021917,3]
[362188361,1748075433190,-430.0,0.00021917,3]
[362188362,1748075433201,-430.0,0.00021917,3]
[362188363,1748075433212,-430.0,0.00021917,3]
[362188364,1748075433222,-430.0,0.00021917,3]
[362188365,1748075433232,-430.0,0.00021917,3]
[362188366,1748075433241,-516.88429869,0.00021917,3]
[362188367,1748075433251,-430.0,0.00021917,3]
[362188368,1748075433260,-430.0,0.00021917,3]
[362188369,1748075433271,-430.0,0.00021917,3]
[362188370,1748075433281,-430.0,0.00021917,3]
[362188371,1748075433290,-629.45,0.00021917,3]
[362188372,1748075433300,-430.0,0.00021917,3]
[362188373,1748075433309,-1376.28,0.00021917,3]
[362188374,1748075433319,-922.06,0.00021917,3]
[362188375,1748075433328,-430.0,0.00021917,3]
[362188376,1748075433337,-515.64,0.00021917,3]
[362188377,1748075433347,-430.0,0.00021917,3]
[362188378,1748075433356,-430.0,0.00021917,3]
[362188379,1748075433366,-430.0,0.00021917,3]
[362188380,1748075433376,-430.0,0.00021917,3]
[362188381,1748075433385,-430.0,0.00021917,3]
[362188382,1748075433395,-430.0,0.00021917,3]
[362188383,1748075433404,-380.03,0.00021917,3]
[362188384,1748075433413,-430.0,0.00021917,3]
[362188385,1748075433423,-430.0,0.00021917,3]
[362188386,1748075433433,-430.0,0.00021917,3]
[362188387,1748075433443,-458.26211048,0.00021917,3]
[362188388,1748075433454,-430.0,0.00021917,3]
[362188389,1748075433465,-430.0,0.00021917,3]
[362188390,1748075433474,-430.0,0.00021917,3]
[362188391,1748075433484,-430.0,0.00021917,3]
[362188392,1748075433495,-430.0,0.00021917,3]
[362188393,1748075433506,-449.25,0.00021917,3]
[362188394,1748075433516,-430.0,0.00021917,3]
[362188395,1748075433528,-430.0,0.00021917,3]
[362188396,1748075433539,-430.0,0.00021917,3]
[362188397,1748075433548,-430.0,0.00021917,3]
[362188398,1748075433559,-430.0,0.00021917,3]
[362188399,1748075433570,-430.0,0.00021917,3]
[362188400,1748075433580,-430.0,0.00021917,3]
[362188401,1748075433591,-430.0,0.00021917,3]
[362188402,1748075433602,-430.0,0.00021917,3]
[362188403,1748075433611,-379.93265487,0.00021917,3]
[362188404,1748075433621,-430.0,0.00021917,3]
[362188405,1748075433631,-430.0,0.00021917,3]
[362188406,1748075433641,-430.0,0.00021917,3]
[362188407,1748075433651,-430.0,0.00021917,3]
[362188408,1748075433661,-498.27,0.00021917,3]
[362188409,1748075433671,-430.0,0.00021917,3]
[362188410,1748075433680,-756.6,0.00021917,3]
[362188411,1748075433690,-430.0,0.00021917,3]
[362188412,1748075433699,-430.0,0.00021917,3]
[362188413,1748075433709,-440.12,0.00021917,3]
[362188414,1748075433719,-958.71,0.00021917,3]
[362188415,1748075433729,-430.0,0.00021917,3]
[362188416,1748075433739,-455.61,0.00021917,3]
[362188417,1748075433749,-470.0,0.00021917,3]
[362188418,1748075433759,-433.87876234,0.00021917,3]
[362188419,1748075433769,-430.0,0.00021917,3]
[362188420,1748075433779,-430.0,0.00021917,3]
[362188421,1748075433788,-430.0,0.00021917,3]
[362188422,1748075433798,-430.0,0.00021917,3]
[362188423,1748075433807,-189.79093315,0.00021917,3]
[362188440,1748075438458,-1313.62906685,0.00021917,3]
[362188442,1748075438468,-430.0,0.00021917,3]
[362188445,1748075438478,-430.0,0.00021917,3]
[362188448,1748075438487,-430.0,0.00021917,3]
[362188450,1748075438497,-430.0,0.00021917,3]
[362188451,1748075438508,-928.37,0.00021917,3]
[362188452,1748075438518,-430.0,0.00021917,3]
[362188454,1748075438530,-430.0,0.00021917,3]
[362188455,1748075438539,-430.0,0.00021917,3]
[362188456,1748075438549,-160.0,0.00021956,2]
[362188457,1748075438559,-430.0,0.00022191,3]
[362188458,1748075438568,-430.0,0.00022191,2]
[362188459,1748075438578,-430.0,0.00022191,3]
[362188460,1748075438587,-429.45,0.00022191,3]
[362188461,1748075438597,-430.0,0.00022191,3]
[362188462,1748075438606,-477.49,0.00022191,3]
[362188463,1748075438616,-614.84,0.00022191,3]
[362188464,1748075438625,-236.71,0.00022191,3]
[362188465,1748075438634,-430.0,0.00022191,3]
[362188466,1748075438643,-430.0,0.00022191,3]
[362188467,1748075438653,-430.0,0.00022191,3]
[362188468,1748075438662,-430.0,0.00022191,3]
[362188469,1748075438672,-430.0,0.00022191,3]
[362188470,1748075438681,-430.0,0.00022191,3]
[362188471,1748075438691,-430.0,0.00022191,3]
[362188472,1748075438700,-312.81093315,0.00022191,3]
[362188480,1748075440789,-430.0,0.00021917,3]
[362188481,1748075440799,-117.18906685,0.00022191,3]
[362188482,1748075440808,-430.0,0.00022191,3]
[362188483,1748075440817,-430.0,0.00022191,3]
[362188484,1748075440827,-629.45,0.00022191,3]
[362188485,1748075440836,-258.61,0.00022191,3]
[362188486,1748075440846,-1376.28,0.00022191,3]
[362188488,1748075440855,-922.06,0.00022191,3]
[362188489,1748075440864,-430.0,0.00022191,3]
[362188490,1748075440874,-430.0,0.00022191,3]
[362188491,1748075440882,-187.48527384,0.00022191,3]
[362188529,1748075778836,500.0,0.00024658,30]
[362188530,1748075787842,500.0,0.00024658,30]
[362188531,1748075795311,500.0,0.00024658,30]
[362188532,1748075802434,500.0,0.00024658,30]
[362188533,1748075858775,500.0,0.000238,120]
[362188534,1748075859610,500.0,0.000238,120]
[362188536,1748075902922,500.0,0.00024658,30]
[362188537,1748075911013,500.0,0.00024658,30]
[362188538,1748075917914,500.0,0.00024658,30]
[362188539,1748075924316,500.0,0.00024658,30]
[362188540,1748075925660,500.0,0.000238,120]
[362188541,1748075926570,500.0,0.000238,120]
[362188542,1748075927677,500.0,0.000238,120]
[362188543,1748075928816,500.0,0.000238,120]
[362188544,1748075930842,500.0,0.000238,120]
[362188545,1748075931674,500.0,0.000238,120]
[362188546,1748075932088,500.0,0.00024658,30]
[362188547,1748075932502,500.0,0.000238,120]
[362188548,1748075933685,500.0,0.000238,120]
[362188549,1748075934767,500.0,0.000238,120]
[362188550,1748075935724,500.0,0.000238,120]
[362188551,1748075936529,522.05,0.000238,120]
[362188553,1748075939752,500.0,0.00024658,30]
[362188554,1748075950129,500.0,0.00024658,30]
[362188555,1748075964256,500.0,0.00024658,30]
[362188556,1748075974567,500.0,0.00024658,30]
[362188557,1748075983586,500.0,0.00024658,30]
[362188558,1748075990912,500.0,0.00024658,30]
[362188559,1748075994170,7032.16248328,0.00024,30]
[362188560,1748075998054,500.0,0.00024658,30]
[362188561,1748076002338,500.0,0.000238,120]
[362188562,1748076003191,500.0,0.000238,120]
[362188564,1748076005560,1000.0,0.00024658,30]
[362188565,1748076013906,1000.0,0.00024658,30]
[362188566,1748076021364,500.0,0.00024658,30]
[362188567,1748076027740,500.0,0.00024658,30]
[362188568,1748076029836,10000.0,0.00024658,30]
[362188569,1748076033839,8084.24517799,0.000245,30]
[362188570,1748076036676,500.0,0.00024658,30]
[362188571,1748076043969,500.0,0.00024658,30]
[362188572,1748076051026,500.0,0.00024658,30]
[362188573,1748076062030,500.0,0.00024658,30]
[362188574,1748076069667,500.0,0.00024658,30]
[362188575,1748076079199,500.0,0.00024658,30]
[362188576,1748076087145,500.0,0.00024658,30]
[362188577,1748076095437,500.0,0.00024658,30]
[362188578,1748076113062,500.0,0.00024658,30]
[362188579,1748076138438,507.31151,0.00024658,30]
[362188580,1748076147745,156.58,0.00024658,30]
[362188633,1748076572281,2500.38,0.00024,120]
[362188635,1748076604373,636.968126,0.00024657,30]
[362188662,1748076632667,-161.481596,0.00013699,2]
[362188663,1748076632677,-300.0,0.00020554,2]
[362188664,1748076632687,-166.968404,0.00020554,2]
[362188668,1748076632774,-133.031596,0.00020554,2]
[362188669,1748076632784,-300.0,0.00020554,2]
[362188670,1748076632793,-300.0,0.00020554,2]
[362188671,1748076632803,-1200.0,0.00020554,2]
[362188672,1748076632813,-14772.502102,0.00020555,2]
[362188673,1748076632822,-295.356086,0.00020619,2]
[362188674,1748076632832,-296.4165271,0.00020636,2]
[362188675,1748076632841,-181.4151301,0.00020824,2]
[362188676,1748076632851,-174.9243093,0.00021032,2]
[362188677,1748076632860,-8760.47892465,0.00021032,2]
[362188678,1748076632870,-300.0,0.00021374,2]
[362188679,1748076632879,-221.57796032,0.000219,6]
[362188680,1748076632889,-161.82870502,0.00021916,2]
[362188682,1748076632899,-500.0,0.00021917,3]
[362188684,1748076632908,-430.0,0.00021917,3]
[362188685,1748076632917,-430.0,0.00021917,3]
[362188686,1748076632927,-430.0,0.00021917,3]
[362188687,1748076632936,-430.0,0.00021917,3]
[362188688,1748076632946,-452.56514672,0.00021917,3]
[362188689,1748076632957,-430.0,0.00021917,3]
[362188690,1748076632968,-430.0,0.00021917,3]
[362188691,1748076632978,-430.0,0.00021917,3]
[362188692,1748076632988,-430.0,0.00021917,3]
[362188693,1748076632999,-430.0,0.00021917,3]
[362188694,1748076633009,-430.0,0.00021917,3]
[362188695,1748076633019,-430.0,0.00021917,3]
[362188696,1748076633029,-284.86729303,0.00021917,3]
[362188697,1748076633040,-430.0,0.00021917,3]
[362188698,1748076633051,-430.0,0.00021917,3]
[362188699,1748076633061,-430.0,0.00021917,3]
[362188700,1748076633071,-430.0,0.00021917,3]
[362188701,1748076633080,-430.0,0.00021917,3]
[362188702,1748076633090,-430.0,0.00021917,3]
[362188703,1748076633100,-500.0,0.00021917,3]
[362188704,1748076633109,-430.0,0.00021917,3]
[362188705,1748076633119,-563.61,0.00021917,3]
[362188706,1748076633128,-430.0,0.00021917,3]
[362188707,1748076633138,-354.98416649,0.00021917,3]
[362188708,1748076633147,-519.59724508,0.00021917,3]
[362188709,1748076633157,-430.0,0.00021917,3]
[362188710,1748076633166,-510.0,0.00021917,3]
[362188711,1748076633176,-360.0,0.00021917,3]
[362188712,1748076633186,-430.0,0.00021917,3]
[362188713,1748076633196,-430.0,0.00021917,3]
[362188714,1748076633206,-430.0,0.00021917,3]
[362188715,1748076633215,-285.83,0.00021917,3]
[362188716,1748076633225,-430.0,0.00021917,3]
[362188717,1748076633235,-430.0,0.00021917,3]
[362188718,1748076633244,-430.0,0.00021917,3]
[362188719,1748076633254,-430.0,0.00021917,3]
[362188720,1748076633263,-510.0,0.00021917,3]
[362188721,1748076633273,-430.0,0.00021917,3]
[362188722,1748076633282,-430.0,0.00021917,3]
[362188723,1748076633291,-430.0,0.00021917,3]
[362188724,1748076633301,-430.0,0.00021917,3]
[362188725,1748076633311,-430.0,0.00021917,3]
[362188726,1748076633320,-430.0,0.00021917,3]
[362188727,1748076633330,-576.99,0.00021917,3]
[362188728,1748076633339,-1261.59,0.00021917,3]
[362188729,1748076633349,-845.22,0.00021917,3]
[362188730,1748076633358,-430.0,0.00021917,3]
[362188731,1748076633368,-430.0,0.00021917,3]
[362188732,1748076633377,-430.0,0.00021917,3]
[362188733,1748076633387,-430.0,0.00021917,3]
[362188734,1748076633396,-430.0,0.00021917,3]
[362188735,1748076633406,-430.0,0.00021917,3]
[362188736,1748076633416,-430.0,0.00021917,3]
[362188737,1748076633426,-430.0,0.00021917,3]
[362188738,1748076633435,-430.0,0.00021917,3]
[362188739,1748076633444,-430.53,0.00021917,3]
[362188740,1748076633454,-430.0,0.00021917,3]
[362188741,1748076633463,-430.0,0.00021917,3]
[362188742,1748076633473,-442.57,0.00021917,3]
[362188743,1748076633483,-430.0,0.00021917,3]
[362188744,1748076633492,-430.0,0.00021917,3]
[362188745,1748076633501,-430.0,0.00021917,3]
[362188746,1748076633511,-494.55,0.00021917,3]
[362188747,1748076633520,-430.0,0.00021917,3]
[362188748,1748076633530,-430.0,0.00021917,3]
[362188749,1748076633539,-430.0,0.00021917,3]
[362188750,1748076633549,-430.0,0.00021917,3]
[362188751,1748076633558,-515.55,0.00021917,3]
[362188752,1748076633568,-450.0,0.00021917,3]
[362188753,1748076633578,-430.0,0.00021917,3]
[362188754,1748076633588,-430.0,0.00021917,3]
[362188755,1748076633597,-292.2741035,0.00021917,3]
[362188756,1748076633606,-430.0,0.00021917,3]
[362188757,1748076633616,-430.0,0.00021917,3]
[362188758,1748076633625,-430.0,0.00021917,3]
[362188759,1748076633635,-430.0,0.00021917,3]
[362188760,1748076633644,-430.0,0.00021917,3]
[362188761,1748076633654,-430.0,0.00021917,3]
[362188762,1748076633663,-430.0,0.00021917,3]
[362188763,1748076633673,-430.0,0.00021917,3]
[362188764,1748076633683,-436.62,0.00021917,3]
[362188765,1748076633693,-430.0,0.00021917,3]
[362188766,1748076633703,-430.0,0.00021917,3]
[362188767,1748076633712,-430.0,0.00021917,3]
[362188768,1748076633721,-477.51,0.00021917,3]
[362188769,1748076633731,-430.0,0.00021917,3]
[362188770,1748076633740,-725.08,0.00021917,3]
[362188771,1748076633750,-430.0,0.00021917,3]
[362188772,1748076633760,-430.0,0.00021917,3]
[362188773,1748076633769,-430.0,0.00021917,3]
[362188774,1748076633780,-430.0,0.00021917,3]
[362188775,1748076633790,-1440.78,0.00021917,3]
[362188776,1748076633799,-918.77,0.00021917,3]
[362188777,1748076633808,-430.0,0.00021917,3]
[362188778,1748076633818,-430.0,0.00021917,3]
[362188779,1748076633827,-430.0,0.00021917,3]
[362188780,1748076633837,-370.74557698,0.00021917,3]
[362188781,1748076633847,-430.0,0.00021917,3]
[362188782,1748076633856,-378.78,0.00021917,3]
[362188783,1748076633866,-506.24,0.00021917,3]
[362188784,1748076633876,-889.69,0.00021917,3]
[362188785,1748076633886,-430.0,0.00021917,3]
[362188786,1748076633896,-430.0,0.00021917,2]
[362188787,1748076633906,-430.0,0.00021917,3]
[362188788,1748076633916,-4368.38,0.0002219,2]
[362188789,1748076633925,-500.0,0.00022191,3]
[362188790,1748076633934,-500.0,0.00022191,3]
[362188791,1748076633944,-500.0,0.00022191,3]
[362188792,1748076633955,-500.0,0.00022191,3]
[362188793,1748076633966,-500.0,0.00022191,3]
[362188794,1748076633976,-500.0,0.00022191,3]
[362188795,1748076633986,-500.0,0.00022191,3]
[362188796,1748076633997,-500.0,0.00022191,3]
[362188797,1748076634010,-500.0,0.00022191,3]
[362188798,1748076634020,-500.0,0.00022191,3]
[362188799,1748076634031,-430.0,0.00022191,3]
[362188800,1748076634040,-430.0,0.00022191,3]
[362188801,1748076634050,-430.0,0.00022191,3]
[362188802,1748076634060,-563.61,0.00022191,3]
[362188803,1748076634069,-223.870631,0.00022191,3]
[362188804,1748076634079,-351.02,0.00022191,3]
[362188805,1748076634089,-430.0,0.00022191,3]
[362188806,1748076634099,-430.0,0.00022191,3]
[362188807,1748076634109,-576.99,0.00022191,3]
[362188808,1748076634121,-1261.59,0.00022191,3]
[362188809,1748076634130,-845.22,0.00022191,3]
[362188810,1748076634139,-203.86889505,0.00022191,3]
[362188811,1748076634149,-430.0,0.00022191,3]
[362188812,1748076634159,-430.0,0.00022191,3]
[362188813,1748076634168,-430.0,0.00022191,3]
[362188814,1748076634178,-430.0,0.00022191,3]
[362188815,1748076634188,-333.39050248,0.00022191,3]
[362188816,1748076634197,-430.53,0.00022191,3]
[362188817,1748076634207,-430.0,0.00022191,3]
[362188818,1748076634216,-430.0,0.00022191,3]
[362188819,1748076634226,-430.0,0.00022191,3]
[362188820,1748076634236,-430.0,0.00022191,3]
[362188821,1748076634246,-430.0,0.00022191,3]
[362188822,1748076634256,-553.84,0.00022191,3]
[362188823,1748076634265,-430.0,0.00022191,3]
[362188824,1748076634275,-430.0,0.00022191,3]
[362188825,1748076634285,-430.0,0.00022191,3]
[362188826,1748076634295,-430.0,0.00022191,3]
[362188827,1748076634304,-436.62,0.00022191,3]
[362188828,1748076634314,-430.0,0.00022191,3]
[362188829,1748076634323,-477.51,0.00022191,3]
[362188830,1748076634332,-430.0,0.00022191,3]
[362188831,1748076634341,-725.08,0.00022191,3]
[362188832,1748076634351,-430.0,0.00022191,3]
[362188833,1748076634360,-430.0,0.00022191,3]
[362188834,1748076634370,-430.0,0.00022191,3]
[362188835,1748076634380,-1440.78,0.00022191,3]
[362188836,1748076634389,-918.77,0.00022191,3]
[362188837,1748076634399,-430.0,0.00022191,3]
[362188838,1748076634409,-430.0,0.00022191,3]
[362188839,1748076634418,-889.69,0.00022191,3]
[362188840,1748076634427,-430.0,0.00022191,2]
[362188841,1748076634437,-430.0,0.00022191,3]
[362188842,1748076634446,-426.85472273,0.00022291,2]
[362188843,1748076634455,-604.18544454,0.00022346,2]
[362188844,1748076634465,-153.0,0.00022438,2]
[362188845,1748076634474,-153.0,0.00022438,2]
[362188846,1748076634484,-153.0,0.00022438,2]
[362188847,1748076634494,-153.0,0.00022438,2]
[362188848,1748076634610,-153.0,0.00022438,2]
[362188849,1748076634620,-153.0,0.00022438,2]
[362188850,1748076634631,-153.0,0.00022438,2]
[362188851,1748076634641,-153.0,0.00022438,2]
[362188852,1748076634650,-153.0,0.00022438,2]
[362188853,1748076634659,-153.0,0.00022438,2]
[362188854,1748076634669,-207.4,0.00022459,2]
[362188855,1748076634679,-155.35,0.00022464,2]
[362188856,1748076634688,-3439.95414544,0.00022465,3]
[362188857,1748076634697,-536.79,0.00022465,3]
[362188858,1748076634707,-430.0,0.00022465,3]
[362188859,1748076634716,-430.0,0.00022465,3]
[362188860,1748076634725,-563.61,0.00022465,3]
[362188861,1748076634735,-200.72,0.00022465,3]
[362188862,1748076634745,-576.99,0.00022465,3]
[362188863,1748076634755,-1261.59,0.00022465,3]
[362188864,1748076634766,-845.22,0.00022465,3]
[362188865,1748076634776,-430.0,0.00022465,3]
[362188866,1748076634786,-255.73708822,0.00022465,3]
[362188867,1748076634796,-430.0,0.00022465,3]
[362188868,1748076634806,-430.53,0.00022465,3]
[362188869,1748076634815,-430.0,0.00022465,3]
[362188870,1748076634825,-430.0,0.00022465,3]
[362188871,1748076634834,-553.00438535,0.00022465,3]
[362188872,1748076634844,-430.0,0.00022465,3]
[362188873,1748076634853,-430.0,0.00022465,3]
[362188874,1748076634863,-430.0,0.00022465,3]
[362188875,1748076634873,-430.0,0.00022465,3]
[362188876,1748076634883,-436.62,0.00022465,3]
[362188877,1748076634892,-477.51,0.00022465,3]
[362188878,1748076634902,-430.0,0.00022465,3]
[362188879,1748076634912,-725.08,0.00022465,3]
[362188880,1748076634922,-430.0,0.00022465,3]
[362188881,1748076634932,-1440.78,0.00022465,3]
[362188882,1748076634941,-918.77,0.00022465,3]
[362188883,1748076634953,-430.0,0.00022465,3]
[362188884,1748076634963,-430.0,0.00022465,3]
[362188885,1748076634973,-889.69,0.00022465,3]
[362188886,1748076634982,-430.0,0.00022465,2]
[362188887,1748076634991,-500.0,0.00022495,2]
[362188888,1748076635002,-500.0,0.00022738,2]
[362188889,1748076635013,-500.0,0.00022738,2]
[362188890,1748076635023,-500.0,0.00022738,2]
[362188891,1748076635034,-500.0,0.00022738,2]
[362188892,1748076635044,-500.0,0.00022738,2]
[362188893,1748076635053,-500.0,0.00022738,2]
[362188894,1748076635061,-500.0,0.00022738,2]
[362188895,1748076635070,-500.0,0.00022738,2]
[362188896,1748076635080,-548.15510821,0.00022738,2]
[362188897,1748076635090,-500.0,0.00022738,2]
[362188898,1748076635101,-268.20039119,0.00022738,2]
[362188899,1748076635110,-500.0,0.00022738,2]
[362188900,1748076635120,-500.0,0.00022738,2]
[362188901,1748076635130,-500.0,0.00022738,2]
[362188902,1748076635139,-500.0,0.00022738,2]
[362188903,1748076635148,-500.0,0.00022738,2]
[362188904,1748076635157,-628.20864784,0.00022738,2]
[362188905,1748076635166,-500.0,0.00022738,2]
[362188906,1748076635176,-96268.2835411,0.00022739,2]
[362188907,1748076635185,-430.0,0.00022739,3]
[362188908,1748076635194,-563.61,0.00022739,3]
[362188909,1748076635204,-576.99,0.00022739,3]
[362188910,1748076635213,-1261.59,0.00022739,3]
[362188911,1748076635223,-845.22,0.00022739,3]
[362188912,1748076635233,-430.0,0.00022739,3]
[362188913,1748076635243,-430.0,0.00022739,3]
[362188914,1748076635252,-430.53,0.00022739,3]
[362188915,1748076635262,-430.0,0.00022739,3]
[362188916,1748076635272,-164.72,0.00022739,3]
[362188917,1748076635282,-566.32,0.00022739,3]
[362188918,1748076635291,-430.0,0.00022739,3]
[362188919,1748076635301,-430.0,0.00022739,3]
[362188920,1748076635310,-430.0,0.00022739,3]
[362188921,1748076635319,-477.51,0.00022739,3]
[362188922,1748076635328,-430.0,0.00022739,3]
[362188923,1748076635338,-725.08,0.00022739,3]
[362188924,1748076635347,-456.8,0.00022739,3]
[362188925,1748076635357,-1440.78,0.00022739,3]
[362188926,1748076635367,-918.77,0.00022739,3]
[362188927,1748076635375,-430.0,0.00022739,3]
[362188928,1748076635385,-430.0,0.00022739,3]
[362188929,1748076635395,-889.69,0.00022739,3]
[362188930,1748076635404,-430.0,0.00022739,2]
[362188931,1748076635414,-404.0,0.00022958,2]
[362188932,1748076635424,-430.0,0.00023013,3]
[362188933,1748076635433,-563.61,0.00023013,3]
[362188934,1748076635442,-576.99,0.00023013,3]
[362188935,1748076635451,-1261.59,0.00023013,3]
[362188936,1748076635461,-845.22,0.00023013,3]